{"text_format":"1","workbook":"xlsx","n_sheets":3,"sheets":["届出者情報入力シート","届出対象品目入力シート","マスタデータ（非表示＆保護します）"],"not_rendered":{"charts":0,"images":1,"macros":0,"external_links":0,"defined_names":2,"comments":0,"pivot_tables":0},"unopened":[],"bounds":{"document_bytes":16777216,"sheet_cells":100000,"rows_first":2000,"rows_last":500,"rows_between":2000,"halvings":0,"cell_chars":16384,"cell_head_chars":4096},"cells_cut":0,"cells_raw":0,"read":"whole","date_system":"1900"}

{"sheet":"届出者情報入力シート","index":0,"n_rows":41,"n_cols":2,"rows_kept":41,"cut":false,"hidden":false,"merged":[[41,1,41,2]]}
["一括届出・一括廃止添付資料"]
[]
[]
[null,"１．届出者情報"]
[null,"提出者"]
[null,"業者コード"]
[null,"郵便番号"]
[null,"住所"]
[null,"法人名ふりがな"]
[null,"法人名"]
[null,"代表者氏名ふりがな"]
[null,"代表者氏名"]
[null,"担当者"]
[null,"郵便番号"]
[null,"住所"]
[null,"氏名１ふりがな"]
[null,"氏名１"]
[null,"氏名２ふりがな"]
[null,"氏名２"]
[null,"連絡先：所属部課名等"]
[null,"連絡先：電話番号"]
[null,"連絡先：ＦＡＸ番号"]
[null,"連絡先：メールアドレス"]
[]
[null,"２．移転情報"]
[null,"届出／廃止"]
[null,"（移転前）製造販売業許可番号"]
[null,"移転後の製造販売業許可番号"]
[null,"移転後の許可年月日"]
[null,"届出年月日"]
[null,"廃止年月日"]
[null,"※１　「届出／廃止」項目が一括届出の場合は「届出」を、一括廃止の場合は「廃止」を選択してください。"]
[null,"※２　「届出／廃止」項目が「届出」の場合は、移転前の製造販売業許可証及び移転後の製造販売業許可証の写しをそれぞれ１部あわせて提出してください。"]
[null,"※３　「届出／廃止」項目が「廃止」の場合は、製造販売業許可証の写しを１部あわせて提出してください。"]
[null,"※４　「届出／廃止」項目が「届出」の場合は、移転後の製造販売業許可番号を入力してください。"]
[null,"※５　「届出／廃止」項目が「届出」の場合は、移転後の許可年月日を入力してください。"]
[null,"※６　「届出／廃止」項目が「届出」の場合は、届出年月日を入力してください。"]
[null,"※７　「届出／廃止」項目が「廃止」の場合は、廃止年月日を入力してください。"]
[null,"※８　提出前にチェックボタンを押下し、入力エラーがないかご確認願います。"]
[]
[null,"システム取込結果　（システム運用ヘルプデスク入力）"]

{"sheet":"届出対象品目入力シート","index":1,"n_rows":61,"n_cols":8,"rows_kept":61,"cut":false,"hidden":false,"merged":[[8,0,9,0],[8,1,8,2],[8,3,8,4],[8,5,8,7]]}
["一括届出・一括廃止対象品目入力シート"]
[]
[null,"※９　一括届出及び一括廃止の対象品目数の下限は３０件程度とし、対象品目数がこれを下回る場合は、従前どおり品目毎に製造販売届書又は廃止届を提出してください。"]
[null,"※１０　届出受付番号が不明の場合は、届出することができません。"]
[null,"※１１　届出受付番号は、変更後も同様となります。"]
[null,"※１２　販売名は先に届出た際の販売名を全角にて正確に入力ください。"]
[null,"※１３　届出受付番号は、初回の届出に係る受付番号のみ記載し、変更届に係る受付番号の記載は必要ありません。"]
[]
["No","都道府県入力項目",null,"届出者入力",null,"システム運用ヘルプデスク入力項目"]
[null,"確認","備考","販売名（全角）","届出受付番号（半角）","処理結果","更新対象販売名及び、結果補足","販売名\n一致判定"]
[{"$f":"ROW()-9","v":2},null,null,null,null,null,null,{"$f":"IF(AND(F11<>\"NG\",D11<>\"\",G11<>\"\"),IF(D11=G11,\"一致\",\"不一致\"),\"\")","v":""}]
[{"$f":"ROW()-9","v":3},null,null,null,null,null,null,{"$f":"IF(AND(F12<>\"NG\",D12<>\"\",G12<>\"\"),IF(D12=G12,\"一致\",\"不一致\"),\"\")","v":""}]
[4,null,null,null,null,null,null,""]
[5,null,null,null,null,null,null,""]
[6,null,null,null,null,null,null,""]
[7,null,null,null,null,null,null,""]
[8,null,null,null,null,null,null,""]
[9,null,null,null,null,null,null,""]
[10,null,null,null,null,null,null,""]
[11,null,null,null,null,null,null,""]
[12,null,null,null,null,null,null,""]
[13,null,null,null,null,null,null,""]
[14,null,null,null,null,null,null,""]
[15,null,null,null,null,null,null,""]
[16,null,null,null,null,null,null,""]
[17,null,null,null,null,null,null,""]
[18,null,null,null,null,null,null,""]
[19,null,null,null,null,null,null,""]
[20,null,null,null,null,null,null,""]
[21,null,null,null,null,null,null,""]
[22,null,null,null,null,null,null,""]
[23,null,null,null,null,null,null,""]
[24,null,null,null,null,null,null,""]
[25,null,null,null,null,null,null,""]
[26,null,null,null,null,null,null,""]
[27,null,null,null,null,null,null,""]
[28,null,null,null,null,null,null,""]
[29,null,null,null,null,null,null,""]
[30,null,null,null,null,null,null,""]
[31,null,null,null,null,null,null,""]
[32,null,null,null,null,null,null,""]
[33,null,null,null,null,null,null,""]
[34,null,null,null,null,null,null,""]
[35,null,null,null,null,null,null,""]
[36,null,null,null,null,null,null,""]
[37,null,null,null,null,null,null,""]
[38,null,null,null,null,null,null,""]
[39,null,null,null,null,null,null,""]
[40,null,null,null,null,null,null,""]
[41,null,null,null,null,null,null,""]
[42,null,null,null,null,null,null,""]
[43,null,null,null,null,null,null,""]
[44,null,null,null,null,null,null,""]
[45,null,null,null,null,null,null,""]
[46,null,null,null,null,null,null,""]
[47,null,null,null,null,null,null,""]
[48,null,null,null,null,null,null,""]
[49,null,null,null,null,null,null,""]
[50,null,null,null,null,null,null,""]
[51,null,null,null,null,null,null,""]
[52,null,null,null,null,null,null,""]

{"sheet":"マスタデータ（非表示＆保護します）","index":2,"n_rows":14,"n_cols":17,"rows_kept":14,"cut":false,"hidden":true,"merged":[[0,11,0,16],[0,5,0,6],[0,7,0,8],[0,9,0,10]]}
["新規、一変、一変（マル製）、更新、追加的調査","一変（マル製）、更新、追加的調査","製品特性（製版）：１申請目","製品特性（製版）：２申請以降",null,"申請",null,"オプション項目",null,"製品特性（製販）",null,"製造所工程"]
["新規","一変（マル製）","新規：生物由来","一変：生物由来",null,"申請基本料",50400,"オプション費用",47500,"新規：生物由来",398500,"新規：設計",86100,"一変：設計",64400,"更新：設計",68800]
["一変","更新","新規：新医療機器","一変：クラスⅣ",null,null,null,null,null,"新規：新医療機器",386600,"新規：組立て",104100,"一変：組立て",87700,"更新：組立て",97400]
["一変（マル製）","追加的調査","新規：クラスⅣ","一変：体診",null,null,null,null,null,"新規：クラスⅣ",374500,"新規：滅菌",91200,"一変：滅菌",75900,"更新：滅菌",80100]
["更新",null,"新規：体診","一変：それ以外",null,null,null,null,null,"新規：体診",272900,"新規：出荷その他",90500,"一変：出荷その他",75800,"更新：出荷その他",79600]
["追加的調査",null,"新規：それ以外","更新：生物由来",null,null,null,null,null,"新規：それ以外",374500,"新規：非登録製造所",87500,"一変：非登録製造所",75900,"更新：非登録製造所",76100]
[null,null,"一変：生物由来","更新：クラスⅣ",null,null,null,null,null,"一変：生物由来",145600,"新規：試験検査施設",87500,"一変：試験検査施設",75900,"更新：試験検査施設",76100]
[null,null,"一変：クラスⅣ","更新：体診",null,null,null,null,null,"一変：クラスⅣ",134000]
[null,null,"一変：体診","更新：それ以外",null,null,null,null,null,"一変：体診",93200]
[null,null,"一変：それ以外",null,null,null,null,null,null,"一変：それ以外",127800]
[null,null,"更新：生物由来",null,null,null,null,null,null,"更新：生物由来",176900]
[null,null,"更新：クラスⅣ",null,null,null,null,null,null,"更新：クラスⅣ",167600]
[null,null,"更新：体診",null,null,null,null,null,null,"更新：体診",129700]
[null,null,"更新：それ以外",null,null,null,null,null,null,"更新：それ以外",149200]